bitfinex/quotes_SOLUSD_20250902
["timestamp","ask_amount","ask_price","bid_price","bid_amount"]
[1756832530955,0.06,202.19,202.18,166.81039497]
[1756832531370,0.06,202.19,202.18,167.47039497]
[1756832531563,0.06,202.19,202.18,119.43775558]
[1756832531770,0.06,202.19,202.18,166.81039497]
[1756832531952,0.06,202.19,202.18,167.47039497]
[1756832532464,0.75,202.19,202.18,26.0]
[1756832532849,0.06,202.19,202.18,26.0]
[1756832533180,0.75,202.19,202.16,13.1791488]
[1756832533478,0.75,202.19,202.16,3.29252264]
[1756832533677,0.06,202.19,202.18,3.29252264]
[1756832534377,0.06,202.19,202.18,8.23861028]
[1756832534574,0.06,202.19,202.18,61.91852743]
[1756832534753,0.06,202.19,202.18,141.760689]
[1756832534953,0.06,202.19,202.18,143.7422113]
[1756832536070,0.06,202.21,202.2,13.87991715]
[1756832536271,0.06,202.21,202.2,53.16207872]
[1756832536473,0.06,202.21,202.2,61.11587663]
[1756832536663,0.06,202.21,202.2,87.77587663]
[1756832536869,0.75,202.21,202.17,21.83422933]
[1756832537175,0.06,202.21,202.2,3.43468421]
[1756832537379,0.06,202.21,202.2,83.41900735]
[1756832537578,0.06,202.21,202.2,128.15167598]
[1756832538082,0.06,202.21,202.2,141.46294685]
[1756832538481,0.06,202.21,202.2,98.38335399]
[1756832538783,0.06,202.21,202.2,79.7]
[1756832538983,0.75,202.21,202.17,144.86]
[1756832539166,0.69,202.2,202.18,79.7]
[1756832539371,0.06,202.21,202.19,22.48078528]
[1756832539567,0.06,202.21,202.2,8.22519127]
[1756832540187,34.28906121,202.32,202.2,8.22519127]
[1756832540188,2.58674003,202.44,202.27,0.28432314]
[1756832540389,13.8660558,202.55,202.27,0.28432314]
[1756832540390,0.69,202.51,202.44,0.14216157]
[1756832540692,0.69,202.55,202.5,8.22519127]
[1756832540980,0.69,202.54,202.5,8.22519127]
[1756832541181,4.93654683,202.58,202.51,40.86]
[1756832541182,0.69,202.58,202.51,40.86]
[1756832541381,0.69,202.57,202.5,13.59559401]
[1756832541581,0.69,202.57,202.53,8.22519127]
[1756832541771,0.69,202.57,202.54,11.87803783]
[1756832541966,0.69,202.57,202.55,3.65284656]
[1756832542184,0.69,202.6,202.54,5.03268499]
[1756832542389,12.33599164,202.66,202.55,3.65064108]
[1756832542569,12.33599164,202.66,202.5,13.59559401]
[1756832542570,12.33599164,202.66,202.56,3.65064108]
[1756832542763,0.69,202.63,202.58,8.22519127]
[1756832543083,0.69,202.63,202.58,11.86570458]
[1756832543262,3.99611676,202.76,202.58,11.86570458]
[1756832543263,0.69,202.69,202.62,13.59559401]
[1756832543585,0.69,202.68,202.63,11.86570458]
[1756832543764,13.4,202.73,202.64,3.64051331]
[1756832543765,8.91519127,202.67,202.64,3.64051331]
[1756832543972,0.69,202.66,202.61,26.0]
[1756832544195,0.69,202.7,202.62,3.62648388]
[1756832544503,0.69,202.7,202.65,8.22519127]
[1756832544700,0.69,202.69,202.66,3.62648388]
[1756832544870,0.69,202.69,202.67,3.62648388]
[1756832545187,0.69,202.69,202.68,3.62648388]
[1756832545393,8.22519127,202.71,202.68,3.62648388]
[1756832545576,8.22519127,202.71,202.69,3.62648388]
[1756832545774,8.22519127,202.7,202.63,26.0]
[1756832545981,8.91519127,202.69,202.64,3.60714488]
[1756832546292,0.69,202.68,202.65,3.60714488]
[1756832546476,0.69,202.67,202.66,3.60714488]
[1756832546792,5.62412937,202.67,202.66,3.60714488]
[1756832546995,13.84932064,202.67,202.66,3.60714488]
[1756832547693,68.10464407,202.67,202.57,3.59983019]
[1756832547995,42.59,202.66,202.58,3.59983019]
[1756832548189,8.22519127,202.59,202.53,21.48503886]
[1756832548394,8.22519127,202.57,202.54,3.60083727]
[1756832548569,8.22519127,202.55,202.53,8.22519127]
[1756832548771,8.91519127,202.54,202.53,8.22519127]
[1756832548987,0.69,202.54,202.53,8.22519127]
[1756832549185,8.91519127,202.54,202.53,8.22519127]
[1756832549695,42.59,202.54,202.4,8.22519127]
[1756832549990,42.63,202.53,202.39,29.60292675]
[1756832550191,8.22519127,202.42,202.38,4.8739195]
[1756832550391,26.69,202.52,202.39,3.60312975]
[1756832550392,8.22519127,202.43,202.39,3.60312975]
[1756832550592,8.22519127,202.43,202.37,8.22519127]
[1756832550593,8.22519127,202.43,202.38,3.60312975]
[1756832550782,8.22519127,202.49,202.42,8.22519127]
[1756832550977,8.22519127,202.5,202.44,8.22519127]
[1756832551677,41.96,202.51,202.44,8.22519127]
[1756832551883,8.22519127,202.5,202.44,8.22519127]
[1756832552198,8.22519127,202.49,202.43,11.82650879]
[1756832552490,8.22519127,202.48,202.43,3.60131752]
[1756832552672,0.69,202.52,202.43,3.60131752]
[1756832552673,8.22519127,202.47,202.43,3.60131752]
[1756832552870,8.22519127,202.45,202.42,3.60131752]
[1756832553090,8.22519127,202.45,202.4,13.59559401]
[1756832553569,8.22519127,202.43,202.39,26.0]
[1756832553769,8.22519127,202.42,202.38,4.88284768]
[1756832553970,8.22519127,202.43,202.39,3.60222213]
[1756832554211,8.22519127,202.43,202.37,8.22519127]
[1756832554212,8.22519127,202.43,202.38,8.44374927]
[1756832554370,8.22519127,202.42,202.39,3.60222213]
[1756832554570,8.22519127,202.41,202.37,3.60222213]
[1756832554807,8.22519127,202.4,202.36,0.66]
[1756832555132,0.69,202.45,202.37,3.60219676]
[1756832555280,8.22519127,202.41,202.38,3.60219676]
[1756832555584,8.22519127,202.41,202.37,3.60219676]
[1756832555784,8.22519127,202.41,202.38,3.60219676]
[1756832555982,42.51,202.49,202.4,8.22519127]
[1756832556180,0.69,202.49,202.41,3.60219676]
[1756832556437,0.69,202.52,202.46,8.22519127]
[1756832556590,41.86,202.51,202.46,8.22519127]
[1756832556793,8.91519127,202.51,202.45,8.22519127]
[1756832557010,42.55,202.51,202.45,8.22519127]
[1756832557215,8.91519127,202.51,202.45,8.22519127]
[1756832557534,42.55,202.51,202.43,8.22519127]
[1756832557691,8.22519127,202.47,202.44,3.60228764]
[1756832558008,8.22519127,202.48,202.43,3.60293605]
[1756832558187,41.84,202.49,202.43,11.82812732]
[1756832558388,50.06519127,202.49,202.44,3.60325303]
[1756832558793,8.91519127,202.48,202.44,3.60325303]
[1756832559000,8.22519127,202.51,202.46,8.22519127]
[1756832559201,8.22519127,202.51,202.45,8.22519127]
[1756832559427,8.22519127,202.5,202.44,8.88519127]
[1756832559736,8.22519127,202.5,202.44,0.66]
[1756832559901,50.73519127,202.51,202.45,8.22519127]
[1756832560109,8.91519127,202.51,202.45,8.22519127]
[1756832560315,50.71519127,202.51,202.46,8.22519127]
[1756832560602,50.71519127,202.51,202.44,5.59949371]
[1756832560919,8.91519127,202.51,202.45,11.82604211]
[1756832561126,8.91519127,202.51,202.46,11.82604211]
[1756832561127,50.71519127,202.51,202.46,11.82604211]
[1756832561322,0.72,202.56,202.5,8.22519127]
[1756832561636,41.78,202.55,202.5,8.22519127]
[1756832561936,8.94519127,202.55,202.49,8.22519127]
[1756832562109,50.74519127,202.55,202.49,8.22519127]
[1756832562302,8.22519127,202.54,202.48,21.82078528]
[1756832562509,8.22519127,202.54,202.49,3.59983365]
[1756832562833,0.72,202.54,202.48,8.22519127]
[1756832563009,50.72519127,202.54,202.49,3.59972718]
[1756832563337,42.5,202.54,202.48,8.22519127]
[1756832563528,41.74,202.54,202.49,11.82465099]
[1756832563709,41.74,202.54,202.49,8.22519127]
[1756832563909,41.74,202.54,202.49,8.88519127]
[1756832564131,5.65659282,202.57,202.49,8.88519127]
[1756832564328,8.22519127,202.55,202.49,8.88519127]
[1756832564631,41.74,202.54,202.49,13.82361226]
[1756832564931,41.72,202.54,202.49,13.82361226]
[1756832565259,4.93500991,202.64,202.54,13.59559401]
[1756832565538,8.94519127,202.63,202.55,0.66]
[1756832565740,49.94519127,202.62,202.57,8.22519127]
[1756832566024,0.72,202.62,202.56,8.22519127]
[1756832566223,0.2,202.65,202.56,8.22519127]
[1756832566441,0.2,202.65,202.59,8.22519127]
[1756832566642,8.42519127,202.65,202.59,8.22519127]
[1756832566943,0.2,202.65,202.63,8.22519127]
[1756832567124,0.2,202.65,202.64,0.66]
[1756832567446,0.2,202.65,202.64,22.48078528]
[1756832568414,0.2,202.65,202.64,27.41564512]
[1756832568639,20.15244409,202.74,202.65,13.59559401]
[1756832568930,8.22519127,202.72,202.64,5.59485984]
[1756832569237,8.22519127,202.72,202.66,8.22519127]
[1756832569740,8.22519127,202.73,202.67,8.22519127]
[1756832570444,0.72,202.74,202.69,8.22519127]
[1756832570618,8.22519127,202.75,202.69,8.22519127]
[1756832571346,0.06,202.7,202.69,21.82078528]
[1756832571554,0.06,202.7,202.69,25.95086785]
[1756832571753,0.06,202.7,202.66,13.59559401]
[1756832571930,0.06,202.7,202.66,25.95086785]
[1756832572124,0.06,202.7,202.67,13.01527384]
[1756832572448,0.06,202.7,202.67,0.66]
[1756832572616,0.06,202.7,202.67,12.35527384]
[1756832572818,0.06,202.7,202.67,17.19801543]
[1756832573328,0.06,202.7,202.66,25.95086785]
[1756832573723,0.06,202.7,202.65,12.35527384]
[1756832573915,0.06,202.7,202.64,0.66]
[1756832574331,0.06,202.7,202.64,13.01527384]
[1756832574752,12.41527384,202.7,202.64,13.01527384]
[1756832574915,12.41527384,202.7,202.64,0.66]
[1756832575117,0.06,202.7,202.65,12.35527384]
[1756832575541,12.41527384,202.7,202.64,17.87997562]
[1756832575840,12.35527384,202.68,202.64,4.86470178]
[1756832576043,12.35527384,202.65,202.59,13.59559401]
[1756832576226,12.35527384,202.65,202.6,3.59615297]
[1756832576433,12.35527384,202.65,202.61,3.59615297]
[1756832576740,12.35527384,202.64,202.59,4.91383502]
[1756832576914,13.07527384,202.63,202.6,3.59910418]
[1756832577119,12.35527384,202.63,202.58,12.35527384]
[1756832577414,12.35527384,202.64,202.59,3.59935007]
[1756832577619,13.07527384,202.64,202.6,3.59935007]
[1756832577832,18.01025941,202.64,202.59,5.00599412]
[1756832578034,18.01025941,202.64,202.6,3.60220751]
[1756832578226,12.35527384,202.63,202.58,13.01527384]
[1756832578435,0.06,202.7,202.59,3.60608905]
[1756832578643,12.35527384,202.64,202.6,3.60608905]
[1756832578829,12.35527384,202.62,202.61,3.60608905]
[1756832579035,13.07527384,202.62,202.56,4.89726495]
[1756832579242,12.35527384,202.61,202.57,3.60749444]
[1756832579546,12.35527384,202.6,202.58,3.60749444]
[1756832579727,0.72,202.61,202.59,3.60749444]
[1756832580043,4.93583415,202.6,202.54,0.66]
[1756832580246,0.72,202.59,202.55,3.61160059]
[1756832580420,4.93583415,202.6,202.56,3.61160059]
[1756832580421,0.72,202.58,202.56,3.61160059]
[1756832580616,0.72,202.58,202.57,3.61160059]
[1756832580817,13.07527384,202.58,202.57,3.61160059]
[1756832581018,0.72,202.58,202.57,3.61160059]
[1756832581221,13.07527384,202.58,202.57,3.61160059]
[1756832581921,12.33826259,202.63,202.57,3.61160059]
[1756832582151,42.22,202.62,202.58,3.62020229]
[1756832582319,12.35527384,202.6,202.59,3.62020229]
[1756832582834,17.27200946,202.64,202.59,3.62020229]
[1756832583036,12.35527384,202.63,202.6,3.62020229]
[1756832583250,12.35527384,202.61,202.56,12.35527384]
[1756832583448,12.35527384,202.61,202.57,4.28942315]
[1756832583631,12.35527384,202.61,202.58,3.62942315]
[1756832583945,4.93607779,202.59,202.54,4.85775621]
[1756832584144,12.35527384,202.59,202.55,3.63065251]
[1756832584349,41.6,202.58,202.56,3.63065251]
[1756832584522,41.6,202.58,202.57,3.63065251]
[1756832584722,12.35527384,202.59,202.57,3.63065251]
[1756832584948,38.33552304,202.67,202.58,3.63065251]
[1756832585128,12.35527384,202.6,202.59,3.63065251]
[1756832585451,54.65527384,202.6,202.59,3.63065251]
[1756832585654,53.93527384,202.6,202.59,3.63065251]
[1756832585830,59.59110799,202.6,202.59,3.63065251]
[1756832586026,12.35527384,202.61,202.59,3.63065251]
[1756832586232,41.56,202.6,202.55,13.01527384]
[1756832586430,41.56,202.6,202.54,9.79502496]
[1756832586431,12.35527384,202.57,202.56,3.64289427]
[1756832586924,54.63527384,202.57,202.56,3.64289427]
[1756832587125,54.63527384,202.57,202.44,0.03]
[1756832587351,12.35527384,202.49,202.44,0.03]
[1756832587554,53.91527384,202.49,202.44,12.38527384]
[1756832587733,41.56,202.49,202.45,0.66]
[1756832587939,0.72,202.57,202.48,12.35527384]
[1756832588269,5.65583415,202.6,202.53,12.35527384]
[1756832588432,5.65583415,202.6,202.52,12.35527384]
[1756832588433,12.35527384,202.58,202.52,12.35527384]
[1756832588632,41.58,202.58,202.53,26.61086785]
[1756832588826,24.66979656,202.68,202.53,26.61086785]
[1756832588827,0.06,202.7,202.57,13.59559401]
[1756832589032,0.72,202.68,202.6,12.35527384]
[1756832589255,12.35527384,202.65,202.6,13.01527384]
[1756832589622,53.95527384,202.65,202.6,0.66]
[1756832589827,53.95527384,202.65,202.6,13.01527384]
[1756832590258,53.93527384,202.66,202.61,0.66]
[1756832590469,0.06,202.7,202.64,12.35527384]
[1756832590750,0.06,202.7,202.62,14.25559401]
[1756832591048,0.06,202.7,202.68,25.95086785]
[1756832591255,0.06,202.7,202.68,13.59559401]
[1756832591426,0.06,202.7,202.69,0.67]
[1756832591826,0.06,202.7,202.69,14.26559401]
[1756832592234,0.06,202.7,202.69,19.19923651]
[1756832592436,0.68,202.81,202.73,13.59559401]
[1756832592659,12.35527384,202.77,202.73,14.26559401]
[1756832592839,24.54,202.83,202.74,0.67]
[1756832593050,12.35527384,202.78,202.74,0.67]
[1756832593464,0.68,202.81,202.73,13.59559401]
[1756832593746,0.18,202.81,202.73,13.59559401]
[1756832593954,12.35527384,202.76,202.73,13.59559401]
[1756832594156,12.35527384,202.76,202.74,0.67]
[1756832594530,12.35527384,202.75,202.73,26.0]
[1756832594731,4.93089856,202.81,202.74,0.67]
[1756832594946,12.35527384,202.78,202.74,0.67]
[1756832595154,12.32320099,202.87,202.76,13.59559401]
[1756832595342,41.72,202.86,202.77,13.02527384]
[1756832595664,41.72,202.85,202.77,13.02527384]
[1756832596031,0.68,202.92,202.79,25.95086785]
[1756832596233,4.92780761,202.93,202.81,13.59559401]
[1756832596455,4.92780761,202.93,202.84,13.59559401]
[1756832596456,12.35527384,202.88,202.84,13.59559401]
[1756832596661,4.92780761,202.93,202.85,0.67]
[1756832596834,12.35527384,202.88,202.85,0.67]
[1756832597037,12.35527384,202.87,202.86,0.67]
[1756832597232,12.35527384,202.89,202.86,5.71448594]
[1756832597449,12.35527384,202.89,202.86,0.67]
[1756832597747,12.35527384,202.9,202.87,14.26559401]
[1756832597946,46.64707922,202.96,202.87,0.67]
[1756832597947,12.35527384,202.89,202.87,0.67]
[1756832598259,12.35527384,202.88,202.85,18.42959671]
[1756832598445,12.35527384,202.89,202.86,0.67]
[1756832598641,12.35527384,202.87,202.8,5.51309274]
[1756832598847,0.68,202.88,202.8,5.51309274]
[1756832598848,12.35527384,202.84,202.8,0.67]
[1756832599049,41.74,202.89,202.81,0.67]
[1756832599251,41.74,202.89,202.81,13.02527384]
[1756832599450,12.35527384,202.87,202.81,13.02527384]
[1756832599638,4.92902208,202.88,202.81,0.67]
[1756832600059,41.74,202.89,202.81,0.67]
[1756832600349,41.7,202.89,202.82,13.59559401]
[1756832600560,12.35527384,202.87,202.82,13.59559401]
[1756832600769,12.35527384,202.87,202.81,13.02527384]
[1756832600770,12.35527384,202.85,202.81,13.59559401]
[1756832600970,46.60874764,202.9,202.82,0.67]
[1756832600971,12.35527384,202.86,202.82,0.67]
[1756832601132,12.35527384,202.87,202.82,0.67]
[1756832601327,0.68,202.92,202.8,17.34744689]
[1756832601328,12.35527384,202.88,202.84,13.59559401]
[1756832601532,12.35527384,202.87,202.84,14.26559401]
[1756832601733,12.35527384,202.85,202.84,0.67]
[1756832601938,4.9290315,202.88,202.81,14.26559401]
[1756832602135,12.35527384,202.82,202.8,4.99217305]
[1756832602356,12.35527384,202.82,202.79,13.59559401]
[1756832602552,12.35527384,202.81,202.78,26.67]
[1756832603145,4.9290315,202.88,202.79,26.62086785]
[1756832603351,12.35527384,202.82,202.79,14.26559401]
[1756832603739,12.35527384,202.8,202.79,4.84481255]
[1756832603952,12.35527384,202.85,202.8,13.59559401]
[1756832604149,4.92877914,202.89,202.81,13.02527384]
[1756832604357,26.0,202.94,202.81,13.02527384]
[1756832604358,0.68,202.94,202.84,25.95086785]
[1756832604550,0.68,202.94,202.85,0.67]
[1756832604755,0.68,202.94,202.86,13.59559401]
[1756832604966,12.35527384,202.9,202.86,13.59559401]
[1756832605167,12.35527384,202.9,202.88,13.59559401]
[1756832605371,12.35527384,202.91,202.88,0.67]
[1756832605676,12.35527384,202.96,202.91,13.59559401]
[1756832605975,4.92659375,202.98,202.91,13.59559401]
[1756832606168,4.92659375,202.98,202.88,0.14216157]
[1756832606369,12.35527384,202.95,202.91,0.67]
[1756832606572,12.35527384,202.92,202.89,26.0]
[1756832606884,12.35527384,202.94,202.9,0.67]
[1756832607078,4.92659375,202.98,202.9,0.67]
[1756832607258,12.35527384,202.94,202.9,0.67]
[1756832607577,4.92659375,202.98,202.91,14.26559401]
[1756832607882,0.835,202.99,202.91,19.19387266]
[1756832607883,12.35527384,202.96,202.91,19.19387266]
[1756832608058,12.35527384,202.96,202.92,0.67]
[1756832608265,5.08137009,202.99,202.93,0.67]
[1756832608466,12.35527384,202.94,202.9,13.59559401]
[1756832608659,5.76137009,202.99,202.9,13.59559401]
[1756832608660,12.35527384,202.93,202.9,13.59559401]
[1756832608870,0.68,202.96,202.89,26.0]
[1756832609074,12.35527384,202.92,202.89,26.0]
[1756832609257,12.35527384,202.93,202.9,0.67]
[1756832609454,18.07724771,202.99,202.9,0.67]
[1756832609655,12.35527384,202.93,202.9,0.67]
[1756832609873,12.35527384,202.92,202.87,13.59559401]
[1756832610077,12.35527384,202.92,202.88,0.67]
[1756832610284,12.35527384,202.93,202.87,13.59559401]
[1756832610471,12.35527384,202.93,202.86,26.0]
[1756832610472,12.35527384,202.91,202.86,26.0]
[1756832610861,12.35527384,202.89,202.83,25.95086785]
[1756832611257,12.35527384,202.91,202.86,13.59559401]
[1756832611568,12.35527384,202.89,202.86,0.67]
[1756832611778,4.92780761,202.93,202.86,0.67]
[1756832611964,12.35527384,202.89,202.85,13.59559401]
[1756832612183,12.35527384,202.88,202.85,13.59559401]
[1756832612356,12.35527384,202.88,202.85,14.26559401]
[1756832612696,12.35527384,202.88,202.84,26.0]
[1756832612697,12.35527384,202.88,202.82,12.35527384]
[1756832612869,0.68,202.92,202.83,13.59559401]
[1756832613067,12.35527384,202.87,202.82,0.67]
[1756832613259,12.35527384,202.86,202.8,0.67]
[1756832613459,12.35527384,202.86,202.8,13.02527384]
[1756832613673,58.94732665,202.93,202.8,39.02527384]
[1756832613852,12.35527384,202.86,202.81,12.35527384]
[1756832614063,4.92902208,202.88,202.81,12.35527384]
[1756832614384,12.35527384,202.92,202.86,12.35527384]
[1756832614566,5.60683647,202.97,202.87,0.67]
[1756832614972,12.35527384,202.93,202.87,13.02527384]
[1756832615171,12.35527384,202.94,202.88,12.35527384]
[1756832615375,12.35527384,202.93,202.88,12.35527384]
[1756832615590,12.35527384,202.93,202.88,13.02527384]
[1756832615763,4.92683351,202.98,202.89,0.67]
[1756832616067,12.35527384,202.95,202.89,13.02527384]
[1756832616273,12.35527384,202.94,202.89,0.67]
[1756832616585,12.35527384,202.92,202.86,13.02527384]
[1756832616771,0.68,202.94,202.86,0.67]
[1756832616968,12.35527384,202.92,202.86,13.02527384]
[1756832617575,12.35527384,202.91,202.86,13.02527384]
[1756832617778,17.28364337,202.91,202.86,0.67]
[1756832617986,4.92796379,202.93,202.84,13.59559401]
[1756832618185,4.92796379,202.93,202.86,12.35527384]
[1756832618383,4.92796379,202.93,202.78,0.67]
[1756832618384,12.35527384,202.87,202.78,0.67]
[1756832618569,42.3,202.92,202.78,0.67]
[1756832618570,12.35527384,202.83,202.78,0.67]
[1756832618770,12.35527384,202.83,202.79,5.68427351]
[1756832618981,0.68,202.88,202.8,0.67]
[1756832619180,12.35527384,202.85,202.8,0.67]
[1756832619675,12.35527384,202.85,202.81,0.67]
[1756832619875,4.92927438,202.87,202.81,0.67]
[1756832620091,12.35527384,202.86,202.8,12.35527384]
[1756832620296,4.92927438,202.87,202.79,9.94540316]
[1756832620297,12.35527384,202.84,202.79,0.03]
[1756832620602,4.92927438,202.87,202.79,17.3164725]
[1756832620902,12.35527384,202.84,202.79,0.03]
[1756832621292,12.35527384,202.85,202.79,13.04527384]
[1756832621476,12.35527384,202.84,202.79,0.03]
[1756832621681,0.67,202.86,202.79,0.03]
[1756832621682,4.92975104,202.85,202.79,0.03]
[1756832621883,0.67,202.84,202.79,0.03]
[1756832622085,12.35527384,202.81,202.79,0.03]
[1756832622482,0.67,202.84,202.79,0.03]
[1756832622704,12.35527384,202.81,202.79,0.03]
[1756832623012,0.67,202.84,202.79,0.03]
[1756832623216,17.25412865,202.85,202.79,0.03]
[1756832623217,12.35527384,202.8,202.79,0.03]
[1756832623897,0.67,202.83,202.79,0.03]
[1756832624207,12.35527384,202.8,202.79,0.03]
[1756832624510,4.93084316,202.81,202.79,0.03]
[1756832624816,12.35527384,202.8,202.79,0.03]
[1756832625309,17.2862403,202.8,202.79,0.03]
[1756832625683,42.17,202.88,202.79,13.04527384]
[1756832625910,12.35527384,202.86,202.81,12.35527384]
[1756832626105,42.17,202.88,202.81,12.35527384]
[1756832626106,42.17,202.88,202.81,13.01527384]
[1756832626290,42.17,202.88,202.79,0.03]
[1756832626291,12.35527384,202.86,202.8,12.35527384]
[1756832626987,12.35527384,202.81,202.79,0.03]
[1756832627189,4.93037802,202.83,202.79,0.03]
[1756832627396,12.35527384,202.83,202.79,0.03]
[1756832627609,12.35527384,202.82,202.79,0.03]
[1756832627916,0.67,202.82,202.79,0.03]
[1756832628103,12.35527384,202.8,202.79,0.03]
[1756832628291,0.67,202.81,202.79,0.03]
[1756832628499,12.35527384,202.81,202.79,0.03]
[1756832628694,0.67,202.84,202.79,0.03]
[1756832628695,12.35527384,202.82,202.79,0.03]
[1756832629010,0.67,202.84,202.79,0.03]
[1756832629215,4.92983236,202.85,202.79,0.03]
[1756832629422,12.35527384,202.89,202.83,12.35527384]
[1756832629589,12.35527384,202.91,202.84,0.66]
[1756832629784,12.35527384,202.91,202.86,12.35527384]
[1756832629988,42.15,202.94,202.85,12.35527384]
[1756832630223,0.67,202.94,202.86,12.35527384]
[1756832630390,13.02527384,202.94,202.88,12.35527384]
[1756832630797,0.67,202.94,202.86,13.01527384]
[1756832631204,12.35527384,202.95,202.9,12.35527384]
[1756832631399,12.35527384,202.95,202.9,13.01527384]
[1756832631619,13.09883537,202.96,202.9,8.83159052]
[1756832632006,8.17159052,202.95,202.89,13.10036955]
[1756832632193,49.65159052,202.96,202.9,8.17159052]
[1756832632396,8.17159052,202.95,202.87,5.58924717]
[1756832632596,8.17159052,202.93,202.87,8.83159052]
[1756832632813,8.17159052,202.92,202.84,0.66]
[1756832633124,8.17159052,202.92,202.86,8.17159052]
[1756832633295,13.0997315,202.92,202.86,8.17159052]
[1756832633490,8.17159052,202.9,202.86,3.61527258]
[1756832633697,8.17159052,202.89,202.82,4.93047458]
[1756832633891,8.17159052,202.88,202.83,3.62348998]
[1756832634208,8.17159052,202.88,202.84,3.62348998]
[1756832634403,8.17159052,202.85,202.84,3.62793967]
[1756832634603,41.4,202.89,202.81,8.17159052]
[1756832634817,8.17159052,202.87,202.82,3.62791731]
[1756832635125,8.17159052,202.86,202.83,3.62791731]
[1756832635300,0.67,202.85,202.84,3.62791731]
[1756832635496,8.84159052,202.85,202.79,0.03]
[1756832635695,8.17159052,202.82,202.8,3.63392833]
[1756832635908,8.17159052,202.81,202.79,0.03]
[1756832636217,8.17159052,202.8,202.79,0.03]
[1756832636523,8.17159052,202.8,202.79,3.66885032]
[1756832636821,8.17159052,202.8,202.79,0.03]
[1756832637301,13.10255698,202.8,202.79,0.03]
[1756832637501,4.93096646,202.8,202.79,0.03]
[1756832637706,13.10255698,202.8,202.79,0.03]
[1756832638007,13.77255698,202.8,202.79,0.03]
[1756832638699,34.27156367,202.8,202.76,0.03]
[1756832638896,8.17159052,202.77,202.76,0.03]
[1756832639096,0.67,202.79,202.76,0.03]
[1756832639312,13.10283987,202.79,202.76,0.03]
[1756832639512,8.17159052,202.78,202.76,0.03]
[1756832640122,0.67,202.81,202.76,0.03]
[1756832640323,0.28432314,202.9,202.76,0.03]
[1756832640324,8.17159052,202.78,202.76,0.03]
[1756832641299,41.38,202.79,202.76,0.03]
[1756832641620,41.38,202.86,202.78,8.17159052]
[1756832641815,8.17159052,202.86,202.8,8.17159052]
[1756832642124,41.4,202.86,202.81,12.47127019]
[1756832642299,41.4,202.86,202.81,8.83159052]
[1756832642504,8.17159052,202.88,202.82,8.17159052]
[1756832642701,4.20812986,202.99,202.84,8.17159052]
[1756832642702,49.59159052,202.9,202.84,8.17159052]
[1756832642907,8.17159052,202.88,202.79,0.66]
[1756832643122,8.17159052,202.88,202.82,8.17159052]
[1756832643731,8.17159052,202.88,202.82,13.10206997]
[1756832643903,41.44,202.89,202.85,8.17159052]
[1756832644107,41.44,202.89,202.85,8.83159052]
[1756832644309,41.44,202.92,202.86,8.83159052]
[1756832644503,8.17159052,202.91,202.86,0.66]
[1756832644830,49.61159052,202.91,202.85,8.17159052]
[1756832645328,8.17159052,202.89,202.83,16.73708827]
[1756832645542,8.17159052,202.89,202.83,13.10181188]
[1756832646329,8.17159052,202.89,202.84,3.63604956]
[1756832646637,49.55159052,202.89,202.83,8.17159052]
[1756832646843,8.17159052,202.87,202.84,3.63580016]
[1756832647052,8.17159052,202.85,202.83,3.63580016]
[1756832647203,41.38,202.89,202.79,3.63580016]
[1756832647510,8.17159052,202.85,202.8,3.63580016]
[1756832647710,8.17159052,202.85,202.81,3.63652107]
[1756832647917,8.17159052,202.85,202.8,0.66]
[1756832648131,8.17159052,202.85,202.78,0.03]
[1756832648132,8.17159052,202.84,202.81,3.63609721]
[1756832648307,8.17159052,202.85,202.79,12.46768773]
[1756832648936,41.36,202.85,202.8,11.80768773]
[1756832649133,4.92904524,202.88,202.81,0.66]
[1756832649339,8.17159052,202.88,202.82,8.17159052]
[1756832649507,8.17159052,202.88,202.81,0.66]
[1756832649508,49.51159052,202.88,202.83,13.10182766]
[1756832649836,8.17159052,202.88,202.83,13.76182766]
[1756832650035,41.34,202.88,202.85,8.17159052]
[1756832650232,5.65863197,202.9,202.85,8.17159052]
[1756832650425,41.34,202.89,202.85,8.17159052]